bitfinex-derivatives/quotes_BTCF0:USTF0_20250308
["timestamp","ask_amount","ask_price","bid_price","bid_amount"]
[1741463150445,0.169541,86379.0,86378.0,0.16660636]
[1741463150749,0.169581,86379.0,86378.0,0.16660636]
[1741463151249,0.245081,86379.0,86378.0,0.16660636]
[1741463151748,0.245161,86379.0,86378.0,0.16660636]
[1741463152154,0.25764236,86379.0,86378.0,0.16660636]
[1741463152352,0.245161,86379.0,86378.0,0.16660636]
[1741463152649,0.245201,86379.0,86378.0,0.16660636]
[1741463153650,0.245241,86379.0,86378.0,0.16660636]
[1741463154648,0.38388397,86379.0,86378.0,0.16660636]
[1741463158845,0.245321,86379.0,86378.0,0.16660636]
[1741463160350,0.245321,86379.0,86378.0,0.09130636]
[1741463162153,0.24523973,86379.0,86378.0,0.09130636]
[1741463164848,0.09503973,86379.0,86378.0,0.09130636]
[1741463165757,0.09455973,86379.0,86378.0,0.09130636]
[1741463166153,0.24955973,86379.0,86378.0,0.09130636]
[1741463166551,0.09455973,86379.0,86378.0,0.09130636]
[1741463167159,0.24425973,86379.0,86378.0,0.09130636]
[1741463167365,0.24429973,86379.0,86378.0,0.09130636]
[1741463167753,0.09467973,86379.0,86378.0,0.09130636]
[1741463168759,0.09455973,86379.0,86378.0,0.09130636]
[1741463169855,0.09463973,86379.0,86378.0,0.09130636]
[1741463172662,0.09455973,86379.0,86378.0,0.24780636]
[1741463173662,0.24339973,86379.0,86378.0,0.24780636]
[1741463174671,0.24347973,86379.0,86378.0,0.24780636]
[1741463177871,0.24351973,86379.0,86378.0,0.24780636]
[1741463178660,0.34770776,86379.0,86378.0,0.24780636]
[1741463182382,0.19890776,86379.0,86378.0,0.24780636]
[1741463182769,0.27200776,86379.0,86378.0,0.24780636]
[1741463182968,0.27100776,86379.0,86378.0,0.24780636]
[1741463183776,0.27000776,86379.0,86378.0,0.24780636]
[1741463183977,0.27200776,86379.0,86378.0,0.24780636]
[1741463184586,0.19890776,86379.0,86378.0,0.24780636]
[1741463185680,0.19866776,86379.0,86378.0,0.24780636]
[1741463186688,0.19874776,86379.0,86378.0,0.24780636]
[1741463188387,0.09463973,86379.0,86378.0,0.24780636]
[1741463191581,0.00208,86379.0,86378.0,0.34044846]
[1741463191774,0.002,86379.0,86378.0,0.34044846]
[1741463192379,0.002,86379.0,86378.0,0.33871194]
[1741463192682,0.00208,86379.0,86378.0,0.33871194]
[1741463195274,0.00208,86379.0,86378.0,0.69951194]
[1741463195684,0.002,86379.0,86378.0,0.69951194]
[1741463197389,0.00208,86379.0,86378.0,0.69951194]
[1741463199683,8e-05,86379.0,86378.0,0.70251194]
[1741463200387,8e-05,86379.0,86378.0,0.69951194]
[1741463200587,8e-05,86379.0,86378.0,0.70151194]
[1741463200989,0.092721,86379.0,86378.0,0.70151194]
[1741463201283,0.092721,86379.0,86378.0,0.70051194]
[1741463203191,0.092721,86379.0,86378.0,0.97529905]
[1741463204583,8e-05,86379.0,86378.0,0.97529905]
[1741463208283,8e-05,86379.0,86378.0,0.70051194]
[1741463208690,0.092721,86379.0,86378.0,0.00986984]
[1741463208892,0.249221,86379.0,86378.0,0.08126984]
[1741463209395,0.249221,86379.0,86378.0,0.15866984]
[1741463209792,0.249261,86379.0,86378.0,0.15866984]
[1741463210395,0.249261,86379.0,86378.0,0.15766984]
[1741463210696,0.251341,86379.0,86378.0,0.15766984]
[1741463210989,0.251341,86379.0,86378.0,0.08026984]
[1741463211192,0.251341,86379.0,86378.0,0.00886984]
[1741463211397,0.0926421,86378.0,86377.0,0.27478711]
[1741463211585,0.0926453,86375.0,86374.0,0.0716]
[1741463212494,0.2381453,86375.0,86374.0,0.0716]
[1741463212791,0.0926485,86372.0,86371.0,0.3608]
[1741463212991,0.0926485,86372.0,86371.0,0.431]
[1741463213592,0.1645485,86372.0,86371.0,0.431]
[1741463213800,0.1645485,86372.0,86371.0,0.52856905]
[1741463214587,0.1645485,86372.0,86371.0,0.52956905]
[1741463216191,0.1645485,86372.0,86371.0,0.45286264]
[1741463216391,0.5253485,86372.0,86371.0,0.07995679]
[1741463216795,0.5253885,86372.0,86371.0,0.07995679]
[1741463216994,0.5253885,86372.0,86371.0,0.00975679]
[1741463217595,0.5254685,86372.0,86371.0,0.00975679]
[1741463218104,0.53796411,86372.0,86371.0,0.00975679]
[1741463218592,0.5254685,86372.0,86371.0,0.00975679]
[1741463221605,0.1646685,86372.0,86371.0,0.00975679]
[1741463222301,0.1646685,86372.0,86371.0,0.37055679]
[1741463222694,0.1645485,86372.0,86371.0,0.00975679]
[1741463222892,0.1645485,86372.0,86371.0,0.37055679]
[1741463223694,0.1646285,86372.0,86371.0,0.37055679]
[1741463225297,0.0927285,86372.0,86371.0,0.37055679]
[1741463226709,0.2468285,86372.0,86371.0,0.37055679]
[1741463227312,0.3220285,86372.0,86371.0,0.37055679]
[1741463227696,0.3220685,86372.0,86371.0,0.37055679]
[1741463228610,0.3221085,86372.0,86371.0,0.37055679]
[1741463229310,0.2469085,86372.0,86371.0,0.44335679]
[1741463229697,0.2467485,86372.0,86371.0,0.44335679]
[1741463230200,0.2467485,86372.0,86371.0,0.08255679]
[1741463230406,0.2467485,86372.0,86371.0,0.08355679]
[1741463230614,0.2468285,86372.0,86371.0,0.08355679]
[1741463232003,0.2468285,86372.0,86371.0,0.08255679]
[1741463233109,0.0927285,86372.0,86371.0,0.17520639]
[1741463233311,0.0927285,86372.0,86371.0,0.15515679]
[1741463233708,0.1667285,86372.0,86371.0,0.15515679]
[1741463234304,0.2413285,86372.0,86371.0,0.15515679]
[1741463235299,0.1667285,86372.0,86371.0,0.15515679]
[1741463235506,0.0927285,86372.0,86371.0,0.15515679]
[1741463236213,0.1643285,86372.0,86371.0,0.15515679]
[1741463238124,0.1643285,86372.0,86371.0,0.15415679]
[1741463243813,8e-05,86372.0,86371.0,0.24680639]
[1741463244218,0.0927285,86372.0,86371.0,0.24680639]
[1741463244616,0.0926485,86372.0,86371.0,0.24680639]
[1741463245624,0.0927285,86372.0,86371.0,0.24680639]
[1741463247318,0.0927285,86372.0,86371.0,0.15415679]
[1741463247513,0.1633285,86372.0,86371.0,0.15415679]
[1741463247713,0.1633285,86372.0,86371.0,0.24680639]
[1741463249516,0.0927285,86372.0,86371.0,0.24680639]
[1741463250113,8e-05,86372.0,86371.0,0.24680639]
[1741463250717,0.0927285,86372.0,86371.0,0.24680639]
[1741463250910,0.1641285,86372.0,86371.0,0.24680639]
[1741463252321,0.2368285,86372.0,86371.0,0.24680639]
[1741463255025,0.1641285,86372.0,86371.0,0.24680639]
[1741463264426,0.1641285,86372.0,86371.0,0.5215935]
[1741463266534,0.1641285,86372.0,86371.0,0.4289439]
[1741463267018,0.2354285,86372.0,86371.0,0.4289439]
[1741463267733,0.2354685,86372.0,86371.0,0.4289439]
[1741463268626,0.2355485,86372.0,86371.0,0.2835439]
[1741463269734,0.2355885,86372.0,86371.0,0.2835439]
[1741463270428,0.2375885,86372.0,86371.0,0.2835439]
[1741463270625,0.2376685,86372.0,86371.0,0.2835439]
[1741463271122,0.2356685,86372.0,86371.0,0.2835439]
[1741463271326,0.2386685,86372.0,86371.0,0.2835439]
[1741463273631,0.2387085,86372.0,86371.0,0.2835439]
[1741463273938,0.2387085,86372.0,86371.0,0.00875679]
[1741463274138,0.0926517,86369.0,86368.0,0.0748]
[1741463274328,0.0926517,86369.0,86368.0,0.1441]
[1741463274638,0.0926517,86369.0,86368.0,0.15287936]
[1741463275137,0.1606517,86369.0,86368.0,0.15287936]
[1741463275626,0.1607317,86369.0,86368.0,0.15287936]
[1741463277136,0.1627317,86369.0,86368.0,0.15287936]
[1741463278139,0.26690713,86369.0,86368.0,0.15287936]
[1741463281727,0.34100713,86369.0,86368.0,0.15287936]
[1741463282134,0.2368317,86369.0,86368.0,0.15287936]
[1741463294545,0.1688317,86369.0,86368.0,0.15287936]
[1741463294747,0.1688317,86369.0,86368.0,0.51367936]
[1741463295047,0.27300713,86369.0,86368.0,0.51367936]
[1741463297442,0.34510713,86369.0,86368.0,0.51367936]
[1741463298841,0.2409317,86369.0,86368.0,0.72032948]
[1741463300044,0.1688317,86369.0,86368.0,0.72032948]
[1741463300248,0.1688317,86369.0,86368.0,0.35952948]
[1741463301638,0.002,86369.0,86368.0,0.24553216]
[1741463302743,0.002,86369.0,86368.0,0.26190843]
[1741463303039,0.10417543,86371.0,86370.0,0.0926506]
[1741463303251,0.10417543,86371.0,86370.0,0.46982687]
[1741463304655,0.10625543,86371.0,86370.0,0.46982687]
[1741463305666,0.002,86371.0,86370.0,0.8138891]
[1741463306270,0.002,86371.0,86370.0,0.86384802]
[1741463306455,0.002,86371.0,86370.0,0.8138891]
[1741463306764,4e-05,86381.0,86380.0,0.0926399]
[1741463306970,4e-05,86381.0,86380.0,0.49679412]
[1741463307366,0.10417543,86390.0,86380.0,0.49679412]
[1741463307668,0.00017357,86387.0,86386.0,0.0926335]
[1741463307870,0.10421543,86390.0,86389.0,0.0926303]
[1741463308065,0.10421543,86390.0,86389.0,0.49678452]
[1741463308766,0.10417543,86390.0,86389.0,0.46980657]
[1741463309474,4e-05,86393.0,86392.0,0.092627]
[1741463309663,4e-05,86393.0,86392.0,0.10900327]
[1741463310055,4e-05,86393.0,86392.0,0.24760327]
[1741463310469,4e-05,86393.0,86392.0,0.15497627]
[1741463310670,4e-05,86393.0,86392.0,0.01637627]
[1741463310857,0.092666,86393.0,86392.0,7e-08]
[1741463311057,0.0926399,86380.0,86375.0,0.34378028]
[1741463311263,0.0926442,86376.0,86375.0,0.2935045]
[1741463311861,0.10350576,86376.0,86375.0,0.3586739]
[1741463312260,0.10350576,86376.0,86375.0,0.3586751]
[1741463312467,0.10450576,86376.0,86375.0,0.0651706]
[1741463312658,0.46530576,86376.0,86375.0,0.0896201]
[1741463312863,0.46530576,86376.0,86375.0,0.10750715]
[1741463313064,0.46530576,86376.0,86375.0,0.0896201]
[1741463313367,0.55038576,86376.0,86375.0,0.0896201]
[1741463313776,0.55046576,86376.0,86375.0,0.05405027]
[1741463314077,0.5400842,86376.0,86375.0,0.05405027]
[1741463314267,0.55428504,86376.0,86375.0,0.05405027]
[1741463314463,0.64048504,86376.0,86375.0,0.05405027]
[1741463314659,0.64040504,86376.0,86375.0,0.05405027]
[1741463314868,0.64040504,86376.0,86375.0,0.08786451]
[1741463315369,0.64040504,86376.0,86375.0,0.54130981]
[1741463315370,0.0946442,86376.0,86375.0,0.54130981]
[1741463315562,0.0946442,86376.0,86375.0,0.44085501]
[1741463315772,0.0946442,86376.0,86375.0,0.08005501]
[1741463316474,0.06858041,86376.0,86375.0,0.08005501]
[1741463317876,0.06866041,86376.0,86375.0,0.08005501]
[1741463318067,0.06566041,86376.0,86375.0,0.08005501]
[1741463318267,0.06766041,86376.0,86375.0,0.17270031]
[1741463318872,0.0294617,86376.0,86375.0,0.22337851]
[1741463319073,0.00208,86376.0,86375.0,0.36297851]
[1741463319474,0.0947242,86376.0,86375.0,0.36297851]
[1741463319673,0.0947242,86376.0,86375.0,0.31230031]
[1741463319878,0.0947242,86376.0,86375.0,0.21965501]
[1741463320779,0.0947242,86376.0,86375.0,0.46176754]
[1741463321869,0.06866129,86376.0,86375.0,0.46176754]
[1741463322078,4e-05,86381.0,86375.0,0.46176754]
[1741463322079,4e-05,86381.0,86376.0,0.0926442]
[1741463322373,4e-05,86381.0,86380.0,0.4534399]
[1741463322573,0.0926788,86381.0,86380.0,0.39699835]
[1741463322768,0.0926388,86381.0,86380.0,0.42595459]
[1741463322969,0.0926388,86381.0,86380.0,0.52410726]
[1741463324479,0.0946388,86381.0,86380.0,0.49029302]
[1741463324681,0.0946388,86381.0,86380.0,0.62789302]
[1741463324879,0.0947188,86381.0,86380.0,0.26709302]
[1741463325181,0.0927188,86381.0,86380.0,0.26709302]
[1741463325679,0.0927188,86381.0,86380.0,0.35973292]
[1741463326567,0.0927188,86381.0,86380.0,0.72053292]
[1741463327383,0.0947188,86381.0,86380.0,0.72053292]
[1741463327881,0.0947188,86381.0,86380.0,0.62789302]
[1741463328781,0.0947188,86381.0,86380.0,0.72053292]
[1741463329983,0.0947188,86381.0,86380.0,0.68433457]
[1741463330182,0.0947188,86381.0,86380.0,0.59169467]
[1741463330381,0.0947188,86381.0,86380.0,0.68433457]
[1741463331685,0.0947188,86381.0,86380.0,0.68352255]
[1741463332076,0.0947188,86381.0,86380.0,0.32272255]
[1741463332278,0.0947188,86381.0,86380.0,0.68352255]
[1741463333775,0.00208,86381.0,86380.0,0.68352255]
[1741463334784,0.0947188,86381.0,86380.0,0.68352255]
[1741463335785,0.0947188,86381.0,86380.0,0.59088265]
[1741463336184,0.0947188,86381.0,86380.0,0.56242679]
[1741463336580,0.0947188,86381.0,86380.0,0.65506669]
[1741463337687,0.00208,86381.0,86380.0,0.65506669]
[1741463338386,0.0947188,86381.0,86380.0,0.65506669]
[1741463338890,0.0937188,86381.0,86380.0,0.65506669]
[1741463339990,0.0937188,86381.0,86380.0,0.63728178]
[1741463340985,0.0937188,86381.0,86380.0,0.60882524]
[1741463341186,0.0937188,86381.0,86380.0,0.51618534]
[1741463342091,0.0937188,86381.0,86380.0,0.4984]
[1741463342596,0.00208,86381.0,86380.0,0.5910399]
[1741463342982,0.00208,86381.0,86380.0,0.60781525]
[1741463343890,4e-05,86382.0,86380.0,0.54281829]
[1741463344188,4e-05,86382.0,86381.0,0.25447609]
[1741463344390,4e-05,86382.0,86381.0,0.26917653]
[1741463344594,0.10555189,86400.0,86384.0,0.0463175]
[1741463344784,0.10381471,86400.0,86397.0,0.0926217]
[1741463344983,0.09262,86399.0,86397.0,0.04441829]
[1741463345285,0.0926206,86398.0,86397.0,0.2826862]
[1741463345783,0.0926606,86398.0,86397.0,0.2826862]
[1741463346085,0.0926606,86398.0,86397.0,0.31967899]
[1741463346787,0.0927406,86398.0,86397.0,0.31967899]
[1741463346989,0.0927406,86398.0,86397.0,0.2836862]
[1741463347180,0.00012,86398.0,86397.0,0.3763079]
[1741463347378,0.00017367,86406.0,86405.0,0.0926131]
[1741463347580,0.00017367,86406.0,86405.0,0.49783139]
[1741463347883,0.00017367,86406.0,86405.0,0.53401667]
[1741463348083,0.00017367,86406.0,86405.0,0.57298458]
[1741463348682,0.00017367,86406.0,86405.0,0.58511511]
[1741463349784,0.00025367,86406.0,86405.0,0.58511511]
[1741463350890,4e-05,86408.0,86405.0,0.58511511]
[1741463350891,0.3608,86434.0,86408.0,0.0463049]
[1741463351191,0.1037917,86433.0,86425.0,0.37864225]
[1741463351382,0.0462922,86432.0,86426.0,0.38399357]
[1741463351583,0.0462926,86431.0,86427.0,0.08060357]
[1741463351784,0.092588,86429.0,86428.0,0.22190357]
[1741463352185,0.0925866,86430.0,86428.0,0.31449127]
[1741463352385,0.0925863,86430.0,86429.0,0.08060357]
[1741463352583,0.0925863,86430.0,86429.0,0.11957148]
[1741463352794,0.0925863,86430.0,86429.0,0.25757148]
[1741463352996,0.0925863,86430.0,86429.0,0.27540914]
[1741463353195,0.0925863,86430.0,86429.0,0.27798244]
[1741463353489,0.0925863,86430.0,86429.0,0.2601728]
[1741463354287,0.0925863,86430.0,86429.0,0.384782]
[1741463354894,0.0925863,86430.0,86429.0,0.385782]
[1741463355503,0.0925863,86430.0,86429.0,0.39773097]
[1741463356887,0.0925863,86430.0,86429.0,0.2931946]
[1741463358299,0.0925863,86430.0,86429.0,0.2611728]
[1741463358688,0.0925863,86430.0,86429.0,0.27897257]
[1741463358901,0.0925863,86430.0,86429.0,0.37155997]
[1741463359094,0.0925863,86430.0,86429.0,0.3537602]
[1741463359290,0.0223,86436.0,86435.0,0.0925799]
[1741463359291,0.138873,86436.0,86435.0,0.0925799]
[1741463359487,0.138873,86436.0,86435.0,0.17578479]
[1741463360291,0.138873,86436.0,86435.0,0.21450489]
[1741463360487,0.138873,86436.0,86435.0,0.28549417]
[1741463360695,0.138873,86436.0,86435.0,0.28649417]
[1741463361188,0.161073,86436.0,86435.0,0.28649417]
[1741463361994,0.138873,86436.0,86435.0,0.37907517]
[1741463362391,0.04629,86436.0,86435.0,0.39683758]
[1741463362592,0.04629,86436.0,86435.0,0.37907517]
[1741463363103,0.00017356,86437.0,86435.0,0.37807517]
[1741463363305,4e-05,86440.0,86436.0,0.53658479]
[1741463363602,0.3608,86473.0,86436.0,0.53658479]
[1741463363603,0.046281,86453.0,86439.0,0.0925767]
[1741463363795,0.046281,86453.0,86437.0,0.28180489]
[1741463363796,0.046272,86470.0,86455.0,0.0925586]
[1741463363997,0.0635,86464.0,86456.0,0.27310489]
[1741463364194,0.0925563,86458.0,86457.0,0.09624004]
[1741463364396,0.0925563,86458.0,86457.0,0.22274004]
[1741463364704,0.0925531,86463.0,86462.0,0.0925515]
[1741463364905,0.092548,86466.0,86465.0,0.0925457]
[1741463365094,0.092548,86466.0,86465.0,0.18878574]
[1741463365291,0.092548,86466.0,86465.0,0.09620763]
[1741463365806,0.06651143,86466.0,86465.0,0.16719691]
[1741463365999,0.06651143,86466.0,86465.0,0.52799691]
[1741463366198,0.06651143,86466.0,86465.0,0.60751056]
[1741463366603,0.09271876,86469.0,86467.0,0.0925457]
[1741463366801,0.00017356,86469.0,86468.0,0.30311808]
[1741463367191,0.00017356,86469.0,86468.0,0.31617515]
[1741463367397,0.0494,86479.0,86471.0,0.0462707]
[1741463367598,0.0494,86479.0,86468.0,0.63505296]
[1741463367599,0.0494,86484.0,86478.0,0.3608]
[1741463367908,0.0925328,86480.0,86479.0,0.22422955]
[1741463368402,0.0462637,86486.0,86482.0,0.0925301]
[1741463368605,0.0925275,86485.0,86484.0,0.092528]
[1741463368803,0.0925275,86485.0,86484.0,0.09622955]
[1741463369612,0.0925275,86485.0,86484.0,0.14684614]
[1741463369909,0.0925275,86485.0,86484.0,0.21783542]
[1741463370209,0.0925275,86485.0,86484.0,0.16721883]
[1741463370720,0.0925275,86485.0,86484.0,0.15416176]
[1741463370721,0.6669275,86485.0,86484.0,0.15416176]
[1741463370910,0.6669275,86485.0,86484.0,0.15516176]
[1741463372202,0.6669275,86485.0,86484.0,0.07198928]
[1741463372399,0.30867686,86485.0,86484.0,0.01822966]
[1741463372599,0.55120436,86485.0,86484.0,0.01822966]
[1741463373009,0.55120436,86485.0,86484.0,0.04693712]
[1741463373997,0.55120436,86485.0,86484.0,0.01822966]
[1741463374197,0.55120436,86485.0,86482.0,0.20410321]
[1741463374404,0.0925296,86483.0,86482.0,0.20410321]
[1741463374811,0.2425296,86483.0,86482.0,0.20410321]
[1741463375211,0.0925414,86472.0,86471.0,0.00903512]
[1741463375417,0.0925414,86472.0,86471.0,0.03598293]
[1741463375710,0.0915414,86472.0,86471.0,0.03598293]
[1741463376500,0.0925414,86472.0,86471.0,0.03598293]
[1741463377298,0.0925414,86472.0,86471.0,0.03755902]
[1741463378909,0.0935414,86472.0,86471.0,0.03755902]
[1741463381413,0.0935414,86472.0,86471.0,0.03749604]
[1741463381803,0.1944214,86472.0,86471.0,0.03749604]
[1741463382004,0.1944214,86472.0,86471.0,0.00903512]
[1741463382612,0.1924214,86472.0,86471.0,0.00903512]
[1741463382812,0.1944214,86472.0,86471.0,0.01003512]
[1741463384212,0.1944214,86472.0,86471.0,0.03689534]
[1741463385109,0.1944214,86472.0,86471.0,0.01003512]
[1741463385609,0.0935414,86472.0,86471.0,0.01003512]
[1741463385809,0.0935414,86472.0,86471.0,0.00903512]
[1741463385810,0.0915414,86472.0,86471.0,0.00903512]
[1741463386013,0.0935414,86472.0,86471.0,0.01003512]
[1741463387007,0.3135414,86472.0,86471.0,0.01003512]
[1741463389110,0.3115414,86472.0,86471.0,0.00903512]
[1741463389312,0.3135414,86472.0,86471.0,0.01003512]
[1741463392818,0.3135414,86472.0,86471.0,0.21413833]
[1741463393219,0.5128414,86472.0,86471.0,0.12905673]
[1741463393416,0.5129173,86472.0,86471.0,0.06564851]
[1741463393723,0.5129173,86472.0,86471.0,0.03150071]
[1741463395011,0.3136173,86472.0,86471.0,0.03150071]
[1741463396924,0.3136173,86472.0,86471.0,0.00976458]
[1741463397120,0.6744173,86472.0,86471.0,0.00976458]
[1741463407319,0.4544173,86472.0,86471.0,0.00976458]
[1741463409026,0.0925446,86469.0,86468.0,0.0646]
[1741463410932,0.0945446,86469.0,86468.0,0.0656]
[1741463411632,0.23316376,86469.0,86468.0,0.0656]
[1741463412427,0.59396376,86469.0,86468.0,0.0656]
[1741463412628,0.59496376,86469.0,86468.0,0.0656]
[1741463415335,0.59396376,86469.0,86468.0,0.0656]
[1741463417824,0.59196376,86469.0,86468.0,0.0656]
[1741463418029,0.59396376,86469.0,86468.0,0.0656]
[1741463419729,0.69260376,86469.0,86468.0,0.0656]
[1741463419932,0.49526376,86469.0,86468.0,0.0656]
[1741463420236,0.68648836,86469.0,86468.0,0.0656]
[1741463422331,0.58780836,86469.0,86468.0,0.0656]
[1741463422635,0.68604836,86469.0,86468.0,0.0656]
[1741463423937,0.5535846,86469.0,86468.0,0.0656]
[1741463425035,0.4553446,86469.0,86468.0,0.0656]
[1741463425735,0.0925499,86464.0,86463.0,0.00017346]
[1741463426835,0.0936539,86464.0,86463.0,0.00017346]
[1741463427628,0.0966539,86464.0,86463.0,0.00117346]
[1741463429426,0.0966539,86464.0,86463.0,0.01755411]
[1741463430535,0.0966539,86464.0,86463.0,0.04460327]
[1741463431327,0.0966539,86464.0,86463.0,0.05903354]
[1741463431928,0.0966539,86464.0,86463.0,0.05886008]
[1741463432134,0.0966539,86464.0,86463.0,0.00196144]
[1741463432332,0.0925553,86459.0,86458.0,0.1297]
[1741463432539,0.0915553,86459.0,86458.0,0.1297]
[1741463432840,0.0926593,86459.0,86458.0,0.1297]
[1741463434028,0.0926593,86459.0,86458.0,0.40128417]
[1741463434228,0.0916593,86459.0,86458.0,0.40128417]
[1741463435149,0.0966593,86459.0,86458.0,0.40228417]
[1741463437339,0.0966593,86459.0,86458.0,0.1307]
[1741463450655,0.09667511,86459.0,86458.0,0.1307]
[1741463450954,0.0925638,86451.0,86450.0,0.00017346]
[1741463451152,0.5494838,86451.0,86450.0,0.00017346]
[1741463451744,0.55060361,86451.0,86450.0,0.00017346]
[1741463452146,0.55460361,86451.0,86450.0,0.00017346]
[1741463453747,0.61180361,86451.0,86450.0,0.00017346]
[1741463454947,0.62338985,86451.0,86450.0,0.00017346]
[1741463455951,0.0925778,86438.0,86437.0,0.23450487]
[1741463456143,0.4533778,86438.0,86437.0,0.23450487]
[1741463456748,0.57769761,86438.0,86437.0,0.23450487]
[1741463457746,0.57769761,86438.0,86429.0,0.00017346]
[1741463457747,0.48511981,86438.0,86429.0,0.00017346]
[1741463457952,0.4533863,86430.0,86429.0,0.00017346]
[1741463458150,0.5486663,86430.0,86429.0,0.06147346]
[1741463458852,0.67358611,86430.0,86429.0,0.06147346]
[1741463459059,0.67358611,86430.0,86429.0,0.12227346]
[1741463459473,0.67358611,86430.0,86429.0,0.12327346]
[1741463461076,0.68551874,86430.0,86429.0,0.12327346]
[1741463461274,0.68551874,86430.0,86429.0,0.11327346]
[1741463465977,0.68551874,86430.0,86429.0,0.0608]
[1741463468175,0.0925992,86418.0,86417.0,0.0616]
[1741463468482,0.092611,86407.0,86401.0,0.34346291]
[1741463468675,0.187651,86407.0,86401.0,0.34346291]
[1741463468877,0.18877081,86407.0,86401.0,0.34346291]
[1741463469072,0.18877081,86407.0,86406.0,0.36952412]
[1741463469578,0.24897081,86407.0,86406.0,0.36952412]
[1741463470187,0.18877081,86407.0,86406.0,0.36952412]
[1741463470484,0.26450468,86407.0,86406.0,0.36952412]
[1741463470677,0.20070468,86407.0,86406.0,0.36952412]
[1741463473581,0.20070468,86407.0,86406.0,0.00872412]
[1741463473884,0.0926142,86404.0,86403.0,0.0611]
[1741463474682,0.0926142,86404.0,86403.0,0.06962331]
[1741463474885,0.15773401,86404.0,86403.0,0.06962331]
[1741463480091,0.092626,86393.0,86392.0,0.3608]
[1741463480479,0.092626,86393.0,86392.0,0.46221683]
[1741463480684,0.092626,86393.0,86392.0,0.36958983]
[1741463480880,0.09374581,86393.0,86392.0,0.31568513]
[1741463481089,0.0926421,86378.0,86377.0,5e-08]
[1741463481386,0.0926496,86371.0,86370.0,0.02097488]
[1741463481591,0.5485296,86371.0,86370.0,0.02097488]
[1741463481987,0.54964941,86371.0,86370.0,0.02097488]
[1741463482491,0.09376941,86371.0,86370.0,0.02097488]
[1741463484898,0.09376941,86371.0,86364.0,0.3608]
[1741463484899,0.092656,86365.0,86364.0,0.3608]
[1741463485192,0.0463263,86370.0,86369.0,0.0926506]
[1741463485391,0.09377041,86371.0,86370.0,0.0926506]
[1741463485595,0.09377041,86371.0,86370.0,0.1523506]
[1741463485801,0.09377041,86371.0,86370.0,0.0597]
[1741463487093,0.22778299,86371.0,86370.0,0.0597]
[1741463487493,0.10588299,86371.0,86370.0,0.0597]
[1741463487694,0.09377041,86371.0,86370.0,0.0597]
[1741463488192,0.09777041,86371.0,86370.0,0.0597]
[1741463488593,0.21767041,86371.0,86370.0,0.0597]
[1741463489996,0.57847041,86371.0,86370.0,0.0597]
[1741463491394,0.45857041,86371.0,86370.0,0.0597]
[1741463491996,0.09777041,86371.0,86370.0,0.0597]
[1741463492191,0.09777041,86371.0,86370.0,0.1523506]
[1741463492391,0.00511981,86371.0,86370.0,0.52518488]
[1741463492592,0.00017367,86379.0,86378.0,0.0926421]
[1741463492906,0.09625749,86389.0,86381.0,0.1389515]
[1741463493104,0.092641,86382.0,86381.0,0.1389515]
[1741463494392,0.092641,86382.0,86381.0,0.0463181]
[1741463495100,0.138954,86387.0,86386.0,0.0926335]
[1741463495498,0.00173749,86389.0,86386.0,0.0463164]
[1741463495698,0.00017367,86390.0,86389.0,0.0926303]
[1741463496107,0.00017367,86390.0,86389.0,0.3034303]
[1741463497306,0.09280287,86390.0,86389.0,0.3034303]
[1741463498910,0.00017367,86390.0,86389.0,0.3034303]
[1741463499203,0.424,86411.0,86389.0,0.3034303]
[1741463499204,0.1389425,86396.0,86395.0,0.0463105]
[1741463499400,0.1389425,86396.0,86395.0,0.4071105]
[1741463500510,0.1389425,86396.0,86395.0,0.4081105]
[1741463502611,0.1389425,86396.0,86395.0,0.05889833]
[1741463502909,0.1389425,86396.0,86395.0,0.05789833]
[1741463504805,0.1389425,86396.0,86395.0,0.41869833]
[1741463505108,0.1658078,86403.0,86395.0,0.41869833]
[1741463505309,0.0926292,86396.0,86395.0,0.15051893]
[1741463506200,0.0926292,86396.0,86395.0,0.15151893]
[1741463506400,0.0926292,86396.0,86395.0,0.0626]
[1741463506604,0.0926292,86396.0,86395.0,0.001]
[1741463506809,0.0926292,86396.0,86389.0,0.1172]
[1741463506810,0.0926292,86390.0,86389.0,0.1172]
[1741463507717,0.2127292,86390.0,86389.0,0.1172]
[1741463508910,0.2127292,86390.0,86389.0,0.1182]
[1741463509313,0.2127292,86390.0,86389.0,0.0594]
[1741463510217,0.2127292,86390.0,86389.0,0.1185]
[1741463511614,0.2127292,86390.0,86389.0,0.001]
[1741463512006,0.2127292,86390.0,86389.0,0.0644]
[1741463514715,0.2127292,86390.0,86387.0,0.00017367]
[1741463514907,0.0926506,86370.0,86369.0,0.0603]
[1741463515106,0.0926506,86370.0,86361.0,0.55982803]
[1741463515107,0.0926539,86367.0,86363.0,0.0926577]
[1741463515313,0.0926539,86367.0,86364.0,0.0586]
[1741463515517,0.0926539,86367.0,86366.0,0.4534549]
[1741463516023,0.0926539,86367.0,86366.0,0.3608]
[1741463516720,0.0946539,86367.0,86366.0,0.3608]
[1741463517115,0.0946539,86367.0,86362.0,0.34161461]
[1741463517428,0.0926581,86363.0,86362.0,0.34161461]
[1741463517921,0.196204,86363.0,86362.0,0.34161461]
[1741463519821,0.197204,86363.0,86348.0,0.26590009]
[1741463520121,0.4534624,86359.0,86348.0,0.20520009]
[1741463520514,0.3608,86359.0,86348.0,0.03596435]
[1741463520819,0.4534732,86349.0,86348.0,0.03596435]
[1741463521624,0.5718732,86349.0,86348.0,0.03596435]
[1741463522114,0.4792,86349.0,86345.0,0.27360012]
[1741463522315,0.0926818,86341.0,86340.0,0.30458261]
[1741463522825,0.0926818,86341.0,86340.0,0.31342368]
[1741463523619,0.0936818,86341.0,86340.0,0.31342368]
[1741463525423,0.1532818,86341.0,86340.0,0.31342368]
[1741463526427,0.1532818,86341.0,86340.0,0.00884107]
[1741463526633,0.0926979,86326.0,86325.0,0.0566]
[1741463526928,0.1846979,86326.0,86325.0,0.0566]
[1741463527521,0.3067979,86326.0,86325.0,0.0566]
[1741463527926,0.3067979,86326.0,86325.0,0.0596]
[1741463530229,0.1846979,86326.0,86325.0,0.0596]
[1741463530738,0.0926979,86326.0,86325.0,0.16104892]
[1741463530931,0.0926971,86328.0,86327.0,0.0926968]
[1741463531635,0.0926971,86328.0,86327.0,0.10445641]
[1741463532029,0.0926971,86328.0,86327.0,0.10745641]
[1741463532329,0.00017367,86334.0,86333.0,0.0926903]
[1741463532530,0.00017367,86334.0,86333.0,0.4534903]
[1741463532829,0.1390255,86343.0,86342.0,0.0463395]
[1741463533233,0.1390255,86343.0,86341.0,0.3608]
[1741463533437,0.1390197,86343.0,86342.0,0.1785]
[1741463534632,0.1410197,86343.0,86342.0,0.1785]
[1741463536534,0.1410197,86343.0,86342.0,0.2711807]
[1741463537231,0.1400197,86343.0,86342.0,0.2711807]
[1741463540542,0.1410197,86343.0,86342.0,0.2711807]
[1741463547644,0.002,86343.0,86342.0,0.2711807]